fUSD/lending_fUSD_20240408
["ID","MTS","AMOUNT","RATE_DAILY","PERIOD"]
[321889237,1712584241923,-303.65133067,0.00028996,2]
[321889239,1712584241935,-570.89706792,0.00028996,2]
[321889241,1712584241946,-232.02232687,0.00028996,2]
[321889244,1712584241957,-155.0,0.00028996,2]
[321889246,1712584241969,-210.48481832,0.00028996,2]
[321889248,1712584241981,-156.95147165,0.00028996,2]
[321889250,1712584241992,-203.62767342,0.00028996,2]
[321889252,1712584242004,-2570.9050671,0.00028996,2]
[321889254,1712584242015,-319.99805191,0.00028996,2]
[321889257,1712584242026,-482.3398624,0.00028996,2]
[321889259,1712584242037,-273.77406327,0.00028996,2]
[321889261,1712584242048,-221.64882724,0.00028996,2]
[321889263,1712584242060,-542.62978743,0.00028996,2]
[321889265,1712584242071,-201.02811127,0.00028996,2]
[321889268,1712584242082,-160.44483625,0.00028996,2]
[321889270,1712584242093,-274.86977578,0.00028996,2]
[321889272,1712584242104,-244.98397099,0.00028996,2]
[321889274,1712584242115,-206.23207189,0.00028996,2]
[321889276,1712584242128,-1053.83898605,0.00028996,2]
[321889278,1712584242139,-707.20622612,0.00028997,2]
[321889281,1712584242149,-279.68472986,0.00028997,2]
[321889283,1712584242160,-208.03176831,0.00028997,2]
[321889285,1712584242171,-164.3276537,0.00028997,2]
[321889287,1712584242181,-304.61275046,0.00028997,2]
[321889289,1712584242192,-46051.84742478,0.00028997,2]
[321889292,1712584242204,-907.86451505,0.00028998,2]
[321889294,1712584242215,-20163.40939977,0.00028998,2]
[321889298,1712584242226,-536.58192424,0.00028999,2]
[321889301,1712584242237,-1000.0,0.00028999,2]
[321889303,1712584242247,-560.89405484,0.00029,2]
[321889305,1712584242259,-220000.0,0.00029,2]
[321889307,1712584242273,-5000.0,0.00029,2]
[321889310,1712584242285,-12265.37491911,0.00029,2]
[321889312,1712584242297,-37002.94531953,0.00029,10]
[321889314,1712584242307,-1000.0,0.00029,2]
[321889316,1712584242318,-88462.03614575,0.00029,7]
[321889318,1712584242329,-19443.3298527,0.00029,7]
[321889320,1712584242340,-20000.0,0.00029,14]
[321889323,1712584242352,-1338.42,0.00029,5]
[321889325,1712584242364,-500.0,0.00029,2]
[321889327,1712584242377,-5271.0,0.00029,2]
[321889329,1712584242388,-6117.79803966,0.00029,2]
[321889331,1712584242399,-1316.18485443,0.00029,7]
[321889333,1712584242410,-1000.0,0.00029,2]
[321889336,1712584242421,-8994.29071703,0.00029,4]
[321889338,1712584242432,-254.44238333,0.00029,2]
[321889340,1712584242442,-150.0,0.00029,2]
[321889342,1712584242453,-481.0,0.00029,13]
[321889344,1712584242464,-481.0,0.00029,13]
[321889346,1712584242475,-962.0,0.00029,13]
[321889349,1712584242486,-2000.0,0.00029,2]
[321889351,1712584242497,-200.0,0.00029,2]
[321889353,1712584242507,-394.0,0.00029,2]
[321889355,1712584242517,-394.0,0.00029,2]
[321889357,1712584242528,-394.0,0.00029,2]
[321889359,1712584242539,-788.0,0.00029,2]
[321889361,1712584242549,-788.0,0.00029,2]
[321889364,1712584242560,-300.0,0.00029,2]
[321889366,1712584242571,-1033.3,0.00029,2]
[321889368,1712584242582,-187.0,0.00029,13]
[321889370,1712584242592,-150.0,0.00029,2]
[321889372,1712584242603,-3000.0,0.00029,2]
[321889374,1712584242614,-187.0,0.00029,13]
[321889377,1712584242627,-750.0,0.00029,3]
[321889379,1712584242638,-219.29,0.00029,2]
[321889381,1712584242649,-219.29,0.00029,2]
[321889383,1712584242660,-219.29,0.00029,2]
[321889385,1712584242671,-219.29,0.00029,2]
[321889387,1712584242682,-219.29,0.00029,2]
[321889390,1712584242692,-219.29,0.00029,2]
[321889392,1712584242703,-219.29,0.00029,2]
[321889394,1712584242713,-3000.0,0.0002901,2]
[321889396,1712584242723,-1000.0,0.00029016,7]
[321889398,1712584242736,-151.0,0.00029019,7]
[321889400,1712584242747,-3000.0,0.0002902,2]
[321889403,1712584242758,-4824.412731,0.0002903,2]
[321889405,1712584242768,-3120.3687487,0.00029066,2]
[321889407,1712584242779,-442.0,0.00029078,2]
[321889409,1712584242789,-150.0,0.00029078,2]
[321889411,1712584242799,-150.0,0.00029078,2]
[321889413,1712584242812,-152.06852239,0.00029078,2]
[321889415,1712584242823,-374.73592442,0.00029112,2]
[321889417,1712584242833,-500.0,0.00029125,2]
[321889420,1712584242844,-700.0,0.00029125,2]
[321889422,1712584242854,-3100.0,0.00029125,2]
[321889424,1712584242864,-1000.0,0.00029141,7]
[321889426,1712584242876,-773.906713,0.0002916,2]
[321889428,1712584242886,-406.620089,0.0002916,2]
[321889430,1712584242897,-240.038831,0.0002916,2]
[321889432,1712584242907,-6716.045468,0.0002916,2]
[321889434,1712584242918,-336.182901,0.0002916,2]
[321889437,1712584242929,-1615.233161,0.0002916,2]
[321889439,1712584242943,-1993.113052,0.0002916,2]
[321889441,1712584242954,-160.025886,0.0002916,2]
[321889444,1712584242965,-12246.512225,0.0002916,2]
[321889447,1712584242975,-447.034585,0.0002916,2]
[321889450,1712584242986,-515.937809,0.0002916,2]
[321889453,1712584242996,-16127.56426026,0.0002919,2]
[321889456,1712584243007,-400.0,0.00029259,2]
[321889459,1712584243017,-1000.0,0.00029265,7]
[321889462,1712584243028,-154.204529,0.0002928,2]
[321889467,1712584243039,-2000.0,0.0002929,2]
[321889471,1712584243049,-200.0,0.0002929,2]
[321889476,1712584243060,-1629.52493088,0.00029297,16]
[321889479,1712584243071,-240.039253,0.00029325,2]
[321889482,1712584243081,-191.46628747,0.0002934,2]
[321889485,1712584243091,-495.0,0.00029369,15]
[321889488,1712584243102,-155.0,0.00029369,15]
[321889491,1712584243112,-235.0,0.00029369,15]
[321889493,1712584243122,-495.0,0.00029379,15]
[321889497,1712584243135,-155.0,0.00029379,15]
[321889500,1712584243146,-235.0,0.00029379,15]
[321889503,1712584243158,-152.06852239,0.00029387,2]
[321889505,1712584243169,-495.0,0.00029389,15]
[321889506,1712584243181,-155.0,0.00029389,15]
[321889507,1712584243192,-235.0,0.00029389,15]
[321889510,1712584243204,-1000.0,0.0002939,7]
[321889512,1712584243214,-28307.45500235,0.00029397,2]
[321889515,1712584243225,-500.0,0.00029399,2]
[321889518,1712584243236,-10518.4800326,0.000294,7]
[321889521,1712584243246,-55888.5731673,0.000294,7]
[321889524,1712584243257,-328818.84925618,0.000294,7]
[321889737,1712584246090,-500.0,0.00025522,2]
[321889738,1712584246100,-246.78799994,0.00025522,2]
[321889739,1712584246424,-398.1641346,0.00025522,2]
[321889740,1712584246433,-150.0,0.00028571,2]
[321889741,1712584246443,-219.29,0.00029,2]
[321889742,1712584246453,-219.29,0.00029,2]
[321889743,1712584246462,-219.29,0.00029,2]
[321889744,1712584246472,-219.29,0.00029,2]
[321889745,1712584246482,-219.29,0.00029,2]
[321889746,1712584246491,-219.29,0.00029,2]
[321889747,1712584246500,-219.29,0.00029,2]
[321889748,1712584246510,-112.16572231,0.00029,2]
[321889760,1712584247373,-500.0,0.00027397,2]
[321889761,1712584247384,-217.17285151,0.00027397,2]
[321889762,1712584247394,-107.12427769,0.00029,2]
[321889763,1712584247403,-219.29,0.00029,2]
[321889764,1712584247413,-219.29,0.00029,2]
[321889765,1712584247422,-219.29,0.00029,2]
[321889766,1712584247431,-219.29,0.00029,2]
[321889767,1712584247440,-219.29,0.00029,2]
[321889768,1712584247450,-219.29,0.00029,2]
[321889769,1712584247459,-219.29,0.00029,2]
[321889770,1712584247468,-219.29,0.00029,2]
[321889771,1712584247478,-219.29,0.00029,2]
[321889772,1712584247487,-219.29,0.00029,2]
[321889773,1712584247496,-219.29,0.00029,2]
[321889774,1712584247505,-300.0,0.00029291,2]
[321889775,1712584247514,-46670.27135504,0.000294,7]
[321889776,1712584247987,-219.29,0.00029,2]
[321889777,1712584247997,-219.29,0.00029,2]
[321889778,1712584248007,-219.29,0.00029,2]
[321889779,1712584248016,-219.29,0.00029,2]
[321889780,1712584248025,-219.29,0.00029,2]
[321889781,1712584248034,-219.29,0.00029,2]
[321889782,1712584248044,-219.29,0.00029,2]
[321889783,1712584248053,-219.29,0.00029,2]
[321889784,1712584248062,-5429.12216,0.000294,7]
[321889785,1712584248107,-250.35374783,0.000294,7]
[321889786,1712584248119,-9420.59374,0.000294,7]
[321889787,1712584248133,-554.315949,0.000294,7]
[321889788,1712584248144,-242461.90015895,0.000294,7]
[321889789,1712584248154,-904.48,0.000294,2]
[321889790,1712584248164,-151.0,0.00029451,2]
[321889791,1712584248173,-200.0,0.000295,2]
[321889792,1712584248183,-445.48310641,0.000295,3]
[321889793,1712584248192,-158991.09141045,0.000295,2]
[321889794,1712584248204,-14001.40954011,0.000295,2]
[321889795,1712584248213,-1000.0,0.00029514,7]
[321889796,1712584248223,-773.906713,0.0002952,2]
[321889797,1712584248232,-406.620089,0.0002952,2]
[321889798,1712584248242,-240.038831,0.0002952,2]
[321889799,1712584248251,-6716.045468,0.0002952,2]
[321889800,1712584248262,-336.182901,0.0002952,2]
[321889801,1712584248273,-1615.233161,0.0002952,2]
[321889802,1712584248285,-1993.113052,0.0002952,2]
[321889803,1712584248295,-160.025886,0.0002952,2]
[321889804,1712584248305,-12246.512225,0.0002952,2]
[321889805,1712584248314,-447.034585,0.0002952,2]
[321889806,1712584248323,-515.937809,0.0002952,2]
[321889807,1712584248333,-2000.0,0.00029583,2]
[321889808,1712584248342,-200.0,0.00029583,2]
[321889809,1712584248352,-151.0,0.00029612,4]
[321889810,1712584248363,-150.0,0.00029638,2]
[321889811,1712584248373,-1000.0,0.00029639,7]
[321889812,1712584248384,-2000.0,0.0002965,2]
[321889813,1712584248394,-150.0,0.00029652,2]
[321889814,1712584248404,-2000.0,0.0002966,4]
[321889815,1712584248413,-152.0,0.00029669,10]
[321889816,1712584248423,-2769.81139274,0.0002968,7]
[321889817,1712584248432,-343329.41755266,0.0002969,5]
[321889818,1712584248442,-240.039253,0.00029691,2]
[321889819,1712584248452,-152.06852239,0.00029695,2]
[321889820,1712584248468,-150.0,0.000297,2]
[321889821,1712584248484,-150.0,0.000297,2]
[321889822,1712584248494,-150.0,0.000297,2]
[321889823,1712584248504,-150.0,0.000297,2]
[321889824,1712584248514,-150.0,0.000297,2]
[321889825,1712584248524,-150.0,0.000297,2]
[321889826,1712584248533,-150.0,0.000297,2]
[321889827,1712584248543,-150.0,0.00029745,2]
[321889828,1712584248552,-154.204529,0.0002976,2]
[321889829,1712584248561,-150.0,0.00029761,2]
[321889830,1712584248571,-1000.0,0.00029763,7]
[321889831,1712584248581,-150.0,0.00029764,2]
[321889832,1712584248591,-150.0,0.00029778,2]
[321889833,1712584248600,-511.0,0.00029795,2]
[321889834,1712584248610,-219.11,0.00029797,2]
[321889835,1712584248619,-834.74,0.00029797,2]
[321889836,1712584248630,-417.68,0.00029797,2]
[321889837,1712584248639,-28307.45500235,0.00029797,2]
[321889838,1712584248648,-88245.41319589,0.000298,10]
[321889839,1712584248658,-150.0,0.000298,2]
[321889840,1712584248667,-1359.47,0.00029808,15]
[321889841,1712584248676,-150.0,0.00029813,2]
[321889842,1712584248686,-150.0,0.00029819,2]
[321889843,1712584248695,-150.0,0.00029852,2]
[321889844,1712584248704,-150.0,0.00029856,2]
[321889845,1712584248714,-950.21,0.00029857,2]
[321889846,1712584248723,-150.0,0.00029857,2]
[321889847,1712584248732,-150.0,0.00029857,2]
[321889848,1712584248742,-179.88,0.00029857,2]
[321889849,1712584248752,-417.68,0.00029857,2]
[321889850,1712584248761,-323.59,0.00029857,2]
[321889851,1712584248771,-150.0,0.00029863,2]
[321889852,1712584248780,-22848.8888723,0.00029877,2]
[321889853,1712584248790,-2000.0,0.00029879,2]
[321889854,1712584248800,-200.0,0.00029879,2]
[321889855,1712584248811,-773.906713,0.0002988,2]
[321889856,1712584248821,-406.620089,0.0002988,2]
[321889857,1712584248830,-240.038831,0.0002988,2]
[321889858,1712584248841,-6716.045468,0.0002988,2]
[321889859,1712584248850,-336.182901,0.0002988,2]
[321889860,1712584248859,-1615.233161,0.0002988,2]
[321889861,1712584248869,-1993.113052,0.0002988,2]
[321889862,1712584248879,-160.025886,0.0002988,2]
[321889863,1712584248889,-12246.512225,0.0002988,2]
[321889864,1712584248899,-447.034585,0.0002988,2]
[321889865,1712584248908,-515.937809,0.0002988,2]
[321889866,1712584248918,-1000.0,0.00029888,7]
[321889867,1712584248929,-150.0,0.00029888,2]
[321889868,1712584248938,-16127.56426026,0.00029892,2]
[321889869,1712584248949,-150.0,0.00029895,2]
[321889870,1712584248959,-55875.13097212,0.000299,2]
[321889871,1712584248973,-1778.20322784,0.000299,2]
[321889872,1712584249029,-219.29,0.00029,2]
[321889873,1712584249040,-10335.98038825,0.000299,2]
[321889874,1712584249087,-270.15551615,0.000299,2]
[321889875,1712584249170,-455.46148288,0.00025783,2]
[321889876,1712584249181,-418.55916272,0.00027396,2]
[321889877,1712584249191,-219.29,0.00029,2]
[321889878,1712584249200,-4061.78809271,0.000299,2]
[321889879,1712584249210,-2000.0,0.000299,2]
[321889880,1712584249219,-5000.0,0.000299,10]
[321889881,1712584249229,-1033.3,0.000299,2]
[321889882,1712584249238,-200.0,0.000299,10]
[321889883,1712584249247,-1932.449045,0.000299,12]
[321889884,1712584249257,-150.0,0.00029915,2]
[321889885,1712584249267,-150.0,0.00029921,2]
[321889886,1712584249279,-150.0,0.00029929,2]
[321889887,1712584249289,-150.45493985,0.0002993,3]
[321889888,1712584249299,-150.0,0.00029936,2]
[321889889,1712584249308,-1500.0,0.00029947,2]
[321889890,1712584249318,-417.68,0.00029947,2]
[321889891,1712584249327,-150.0,0.00029959,2]
[321889892,1712584249337,-150.0,0.0002996,2]
[321889893,1712584249347,-374.73592442,0.00029969,2]
[321889894,1712584249357,-235.0,0.0002997,15]
[321889895,1712584249367,-1657.66674119,0.0002998,2]
[321889896,1712584249377,-235.0,0.0002998,15]
[321889897,1712584249388,-150.0,0.00029987,2]
[321889898,1712584249397,-2641.04596842,0.0002999,2]
[321889899,1712584249408,-221.2017575,0.0002999,2]
[321889900,1712584249417,-200.0,0.0002999,7]
[321889901,1712584249428,-200.0,0.0002999,7]
[321889902,1712584249437,-200.0,0.0002999,7]
[321889903,1712584249446,-200.0,0.0002999,7]
[321889904,1712584249456,-200.0,0.0002999,7]
[321889905,1712584249465,-200.0,0.0002999,7]
[321889906,1712584249475,-200.0,0.0002999,7]
[321889907,1712584249485,-150.0,0.00029996,2]
[321889908,1712584249494,-28307.45500235,0.00029997,2]
[321889909,1712584249504,-1747.24498302,0.00029998,5]
[321889910,1712584249513,-150.0,0.00029998,2]
[321889911,1712584249522,-150.0,0.00029999,2]
[321889912,1712584249531,-150.0,0.00029999,10]
[321889913,1712584249541,-150.0,0.00029999,10]
[321889914,1712584249551,-66366.88847604,0.0003,10]
[321889915,1712584249566,-273.5221752,0.0003,10]
[321889916,1712584249578,-33359.58934876,0.0003,10]
[321889917,1712584249588,-155.0,0.0003,2]
[321889918,1712584249598,-374.5290576,0.0003,2]
[321889919,1712584249608,-346.69900515,0.0003,2]
[321889920,1712584249618,-1699.31496795,0.0003,2]
[321889921,1712584249627,-158.0,0.0003,2]
[321889922,1712584249639,-19289.64853053,0.0003,4]
[321889923,1712584249649,-76058.05461553,0.0003,4]
[321889924,1712584252220,-2223.24347368,0.000248,2]
[321889925,1712584252229,-3749.37277707,0.00025783,2]
[321889926,1712584252283,-618.05751897,0.00025783,2]
[321889927,1712584252292,-182.75824239,0.00025783,2]
[321889928,1712584252303,-2724.09568864,0.00027395,2]
[321889929,1712584253017,-1619.10242136,0.00027395,2]
[321889930,1712584253185,-656.80189,0.00027395,2]
[321889931,1712584253195,-155.0,0.00027396,2]
[321889932,1712584253205,-1614.6397462,0.00027396,2]
[321889933,1712584253214,-204.64505826,0.00027396,2]
[321889934,1712584253224,-260.0,0.00028717,5]
[321889935,1712584253234,-206.59266165,0.00028899,2]
[321889936,1712584253243,-5825.99102334,0.00028899,2]
[321889937,1712584253253,-59440.52676999,0.00028999,2]
[321889938,1712584253262,-219.29,0.00029,2]
[321889939,1712584253276,-219.29,0.00029,2]
[321889940,1712584253286,-219.29,0.00029,2]
[321889941,1712584253296,-219.29,0.00029,2]
[321889942,1712584253305,-219.29,0.00029,2]
[321889943,1712584253314,-219.29,0.00029,2]
[321889944,1712584253325,-219.29,0.00029,2]
[321889945,1712584253334,-219.29,0.00029,2]
[321889946,1712584253343,-219.29,0.00029,2]
[321889947,1712584253353,-219.29,0.00029,2]
[321889948,1712584253363,-219.29,0.00029,2]
[321889949,1712584253372,-219.29,0.00029,2]
[321889950,1712584253382,-219.29,0.00029,2]
[321889951,1712584253391,-219.29,0.00029,2]
[321889952,1712584253401,-219.29,0.00029,2]
[321889953,1712584253410,-219.29,0.00029,2]
[321889954,1712584253419,-219.29,0.00029,2]
[321889955,1712584253428,-219.29,0.00029,2]
[321889956,1712584253438,-219.29,0.00029,2]
[321889957,1712584253447,-219.29,0.00029,2]
[321889958,1712584253456,-162.07,0.00029797,2]
[321889959,1712584253466,-142567.68285052,0.0003,4]
[321889960,1712584253477,-3873.45993304,0.0003,4]
[321889963,1712584384790,347.0,0.0002089,15]
[321889964,1712584384881,150.5,0.0002089,15]
[321889965,1712584385432,150.5,0.0002088,15]
[321889966,1712584386632,150.5,0.0002087,15]
[321889967,1712584387818,347.0,0.0002088,15]
[321889968,1712584388200,347.0,0.0002087,15]
[321889970,1712584430793,897.90985936,0.0002688,30]
[321889975,1712584448053,-150.5,0.00026301,15]
[321889976,1712584448075,-347.0,0.00026301,15]
[321889977,1712584448099,-150.5,0.00026311,15]
[321889978,1712584448123,-347.0,0.00026311,15]
[321889979,1712584448145,-150.5,0.00026321,15]
[321889980,1712584448171,-347.0,0.00026321,15]
[321889981,1712584448194,-1189.54,0.00026391,15]
[321889984,1712584465047,3694.98087404,0.00031,30]
[321889998,1712584505666,272.77,0.0002089,15]
[321889999,1712584531164,1000.0,0.00031,30]
[321890000,1712584624526,150.5,0.0002089,15]
[321890001,1712584625008,150.5,0.0002088,15]
[321890002,1712584625571,150.5,0.0002087,15]
[321890004,1712584665829,184.16,0.00020076,10]
[321890005,1712584690607,-1629.52493088,0.00026007,11]
[321890028,1712584709996,200.0,0.0003,30]
[321890030,1712584745222,150.5,0.0002089,15]
[321890031,1712584745778,150.5,0.0002088,15]
[321890032,1712584746603,150.5,0.0002087,15]
[321890033,1712584767431,1115.19,0.00024329,15]
[321890034,1712584815952,-1303.61994471,0.00025958,11]
[321890035,1712584864440,150.5,0.0002089,15]
[321890036,1712584865065,150.5,0.0002088,15]
[321890037,1712584866489,150.5,0.0002087,15]
[321890038,1712584866809,150.5,0.0002618,15]
[321890039,1712584867233,150.5,0.0002617,15]
[321890040,1712584867763,186.82,0.0002616,15]
[321890041,1712584906705,272.37,0.00017944,2]
[321890042,1712584909157,1042.89595576,0.00025862,11]
[321890043,1712584924101,156.0,0.00031,30]
[321890044,1712585030465,463.66199482,0.00031,30]
[321890045,1712585054501,834.31676461,0.0002535,10]
[321890051,1712585201244,667.45341169,0.0002535,10]
[321890053,1712585258682,1045.49,0.00024329,15]
[321890054,1712585298756,20000.0,0.00031,30]
[321890062,1712585348460,533.96272935,0.0002535,10]
[321890074,1712585414779,258.75,0.00017731,2]
[321890082,1712585432520,-161.1031879,0.00018873,2]
[321890084,1712585432530,-165.01791129,0.000189,2]
[321890085,1712585432539,-72.25226515,0.00018997,2]
[321890086,1712585432550,-77.74773485,0.00018997,2]
[321890087,1712585432559,-1962.66470948,0.00018998,2]
[321890088,1712585432588,-2864.17208966,0.00018998,2]
[321890089,1712585432732,-920.57364197,0.00018998,2]
[321890090,1712585432744,-1527.51591013,0.00018998,2]
[321890091,1712585432755,-2355.18480018,0.00018998,2]
[321890092,1712585432765,-500.0,0.00019,2]
[321890093,1712585432775,-710.13565097,0.00019,2]
[321890094,1712585432816,-6489.86434903,0.00019,2]
[321890095,1712585432826,-871.3534068,0.000195,2]
[321890096,1712585432835,-23890.0,0.00019782,2]
[321890097,1712585432845,-689.06,0.00019829,2]
[321890098,1712585432854,-418.89,0.0001985,2]
[321890099,1712585432863,-155.25,0.00019861,2]
[321890100,1712585432872,-160.0,0.00019879,2]
[321890101,1712585432881,-258.75,0.00019995,2]
[321890102,1712585432890,-7200.0,0.0002,2]
[321890103,1712585432899,-640.23975986,0.00020333,2]
[321890105,1712585432910,-840.0,0.00020334,2]
[321890106,1712585432919,-1268.44514472,0.00020423,2]
[321890108,1712585432929,-499.99,0.00020426,2]
[321890110,1712585432938,-213.53,0.00020437,2]
[321890112,1712585432948,-1000.80308533,0.000205,2]
[321890113,1712585432957,-513.0,0.00020548,2]
[321890114,1712585432966,-596.45650072,0.000208,2]
[321890115,1712585432975,-177.99290905,0.000208,2]
[321890117,1712585432984,-152.10391976,0.000208,2]
[321890118,1712585432993,-169.22254171,0.000208,2]
[321890120,1712585433002,-14030.4171511,0.000208,2]
[321890122,1712585433012,-976.97265236,0.000208,2]
[321890124,1712585433021,-196.75920641,0.000208,2]
[321890127,1712585433032,-175.48830162,0.000208,2]
[321890129,1712585433042,-533.96272938,0.000208,3]
[321890130,1712585433051,-180.97150638,0.000208,2]
[321890132,1712585433060,-306.7398636,0.000208,2]
[321890134,1712585433069,-9681.01087385,0.000208,2]
[321890136,1712585433078,-5151.19839723,0.000208,2]
[321890138,1712585433087,-614.57197261,0.000208,2]
[321890140,1712585433096,-272.33475636,0.00020889,2]
[321890142,1712585433106,-257.86,0.00020889,2]
[321890144,1712585433114,-257.86,0.00020889,2]
[321890146,1712585433123,-257.86,0.00020889,2]
[321890148,1712585433132,-257.86,0.00020889,2]
[321890150,1712585433142,-257.86,0.00020889,2]
[321890152,1712585433151,-257.86,0.00020889,2]
[321890153,1712585433161,-257.86,0.00020889,2]
[321890155,1712585433170,-257.86,0.00020889,2]
[321890157,1712585433180,-272.33475636,0.0002089,2]
[321890160,1712585433189,-272.33475636,0.0002089,2]
[321890162,1712585433199,-257.86,0.0002089,2]
[321890164,1712585433209,-257.86,0.0002089,2]
[321890166,1712585433218,-2611.60148596,0.00020897,2]
[321890168,1712585433228,-343.66545463,0.00020897,2]
[321890170,1712585433238,-2968.3493622,0.00020898,2]
[321890172,1712585433247,-377.0078044,0.00020898,2]
[321890174,1712585433257,-155.0,0.00020899,2]
[321890176,1712585433267,-198.04823393,0.00020899,2]
[321890178,1712585433276,-874152.73086475,0.00020899,2]
[321890180,1712585433288,-308.68743525,0.00020899,2]
[321890187,1712585433438,-2112.94978336,0.00020899,2]
[321890188,1712585433450,-6756.98938942,0.00020899,2]
[321890189,1712585433879,-1077.41928202,0.00020899,2]
[321890190,1712585434237,500.0,0.00031,30]
[321890223,1712585438909,-322.32842367,0.000208,2]
[321890225,1712585438918,-42.61129842,0.00020897,2]
[321890228,1712585438930,-732.03993944,0.00020897,2]
[321890230,1712585438939,-172.69561109,0.00020899,2]
[321890232,1712585438950,-7240.13443274,0.00020899,2]
[321890234,1712585438961,-1465.62805132,0.00020899,2]
[321890244,1712585439047,-689.35058482,0.00020899,2]
[321890249,1712585439077,-700256.97269331,0.00020899,2]
[321890251,1712585439087,-383.4301804,0.000209,2]
[321890253,1712585439096,-1822118.0500134,0.000209,2]
[321890255,1712585439106,-810.2,0.000209,2]
[321890257,1712585439116,-1033.3,0.000209,2]
[321890259,1712585439126,-157.09483559,0.00020998,2]
[321890261,1712585439135,-155.046986,0.00020998,2]
[321890263,1712585439145,-626.87241806,0.00020998,2]
[321890265,1712585439155,-240.08283614,0.00020998,2]
[321890267,1712585439172,-155.0,0.00020998,2]
[321890269,1712585439182,-180.68788228,0.00020998,2]
[321890271,1712585439193,-244.97936461,0.00020998,2]
[321890273,1712585439203,-266.6304209,0.00020998,2]
[321890275,1712585439213,-155.20654588,0.00020998,2]
[321890277,1712585439223,-407.22475255,0.00020998,2]
[321890279,1712585439232,-1053.83898605,0.00020998,2]
[321890281,1712585439242,-156.0026956,0.00020998,3]
[321890283,1712585439252,-156.95147165,0.00020998,2]
[321890285,1712585439261,-165.37702993,0.00020998,2]
[321890287,1712585439271,-570.89706792,0.00020998,2]
[321890289,1712585439281,-155.0,0.00020998,2]
[321890291,1712585439292,-279.68472986,0.00020998,2]
[321890293,1712585439302,-155.31508233,0.00020998,2]
[321890295,1712585439312,-205.79634065,0.00020998,2]
[321890297,1712585439321,-309.98182803,0.00020998,2]
[321890299,1712585439330,-232.02232687,0.00020999,2]
[321890301,1712585439339,-20163.40939977,0.00020999,2]
[321890303,1712585439348,-500.0,0.00020999,2]
[321890305,1712585439357,-304.61275046,0.00020999,2]
[321890307,1712585439366,-873.90846262,0.00020999,2]
[321890309,1712585439376,-319.99805191,0.00020999,2]
[321890310,1712585439385,-273.77406327,0.00020999,2]
[321890313,1712585439395,-542.62978743,0.00020999,2]
[321890315,1712585439409,-2729.30649513,0.00020999,2]
[321890316,1712585439423,-264.23455154,0.00020999,2]
[321890319,1712585439432,-881.36334579,0.00020999,2]
[321890321,1712585439442,-244.98397099,0.00020999,2]
[321890322,1712585439451,-482.3398624,0.00020999,2]
[321890324,1712585439460,-155.0,0.00020999,2]
[321890326,1712585439469,-240.02740078,0.00020999,2]
[321890328,1712585439478,-788.71072943,0.00020999,2]
[321890330,1712585439487,-155.39293265,0.00020999,2]
[321890332,1712585439496,-707.20622612,0.00020999,2]
[321890334,1712585439505,-184.99361137,0.00020999,2]
[321890336,1712585439514,-304.58040453,0.00020999,2]
[321890338,1712585439524,-601.30438827,0.00020999,2]
[321890341,1712585439535,-155.30824713,0.00020999,2]
[321890343,1712585439544,-350.76102204,0.00020999,2]